Cogmind - Beta 15 @@@ ROGUE MODE // 2025.07.21 @ 16:35:39 Player: shapeshifter Result: Destroyed by T3-J3X(R) with Subdweller Beam Cannon Performance ------------- Evolutions (0) 0 Regions Visited (3) 600 Robots Destroyed (5) 25 Value Destroyed (128) 128 Prototype IDs (2) 40 Alien Tech Used (0) 0 Bonus (0) 0 TOTAL SCORE: 793 Bonus ------- None Cogmind --------- Core Integrity 0/250 Matter 288/300 Energy 250/250 System Corruption 0% Temperature Cool (9) Movement Rolling (110) Location -10/Subcaves Parts ------- > --- POWER (1) -------- Ion Engine > --- PROPULSION (2) --- Subdweller Monowheel > --- UTILITY (2) ------ Small Storage Unit Seismic Detector > --- WEAPON (2) ------- (None) > --- INVENTORY (8) ---- Light Ion Engine Wheel Armored Wheel Armored Wheel Armored Wheel Light Armor Plating Small Laser Battle Cannon Peak State ------------ > --- POWER ------------ Ion Engine > --- PROPULSION ------- Armored Wheel Armored Wheel > --- UTILITY ---------- Small Storage Unit Seismic Detector > --- WEAPON ----------- Improved Light Cannon Improved Light Cannon > --- INVENTORY -------- Light Ion Engine Wheel Compact Wheel Armored Wheel Armored Wheel Light Armor Plating Small Laser Battle Cannon [Rating: 12] Favorites ----------- Power Ion Engine Engine Ion Engine Propulsion Armored Wheel Treads Light Treads Wheel Armored Wheel Utility Small Storage Unit Device Seismic Detector Storage Small Storage Unit Weapon Improved Light Cannon Energy Gun Medium Laser Ballistic Gun Assault Rifle Ballistic Cannon Improved Light Cannon Build | -11 -10 -10 -10 ------- Run | Yrd Mat Min Sub Slots Evolved . | . . . . Power . | . . . . Propulsion . | . . . . Utility . | . . . . Weapon . | . . . . Parts Attached 12 | 7 2 1 2 Power 1 | 1 . . . Engine 1 | 1 . . . Core . | . . . . Reactor . | . . . . Propulsion 5 | 2 2 . 1 Treads 2 | 2 . . . Leg . | . . . . Wheel 3 | . 2 . 1 Hover . | . . . . Flight . | . . . . Utility 2 | 2 . . . Device 1 | 1 . . . Storage 1 | 1 . . . Processor . | . . . . Hackware . | . . . . Protection . | . . . . Artifact . | . . . . Weapon 4 | 2 . 1 1 Energy Gun 1 | 1 . . . Energy Cannon . | . . . . Ballistic Gun 1 | 1 . . . Ballistic Cannon 2 | . . 1 1 Launcher . | . . . . Special Weapon . | . . . . Impact Weapon . | . . . . Slashing Weapon . | . . . . Piercing Weapon . | . . . . Special Melee Weapon . | . . . . Unidentified Prototypes . | . . . . Parts Lost 5 | . . 2 3 Power . | . . . . Propulsion 1 | . . . 1 Utility . | . . . . Weapon 4 | . . 2 2 Highest Loss Streak 3 | . . 2 3 To Critical Strikes . | . . . . Average Backups 6 | 3 7 7 7 Power . | . 1 1 1 Propulsion 3 | 1 4 4 4 Utility . | . . . . Weapon 1 | . 1 2 1 Tool/Special . | . . . . Unused Backups 11 | . 3 . 8 Power 1 | . . . 1 Propulsion 6 | . 2 . 4 Utility 2 | . 1 . 1 Weapon 2 | . . . 2 Tool/Special . | . . . . Average Slot Usage (%) 91 | . 100 90 87 Engine 14 | . 14 14 14 Treads 3 | . 13 . . Wheel 24 | . 14 28 25 Device 14 | . 14 14 14 Storage 14 | . 14 14 14 Energy Gun 6 | . 14 4 . Ballistic Gun 6 | . 14 4 . Ballistic Cannon 8 | . . 9 19 Peak Build Rating 12 | 7 10 10 12 Average Rating 8 | 4 8 9 10 On Entrance 6 | . 7 10 10 Naked Turns . | . . . . Heaviest Build 19 | 15 15 15 19 Greatest Support 40 | 40 40 24 32 Greatest Overweight (x) 4 | 4 1 . . Average Overweight (x) . | 1 . . . Largest Inventory Capacity 8 | 8 8 8 8 Average Capacity 7 | 7 8 8 8 Most Carried 8 | 8 8 8 8 Average Carried 6 | 4 7 7 7 Final Capacity 8 | 8 8 8 8 Final Carried 8 | 7 8 7 8 Class Distribution -------------------- 100% | Mutant Dominant Class ---------------- Mutant | -10/Materials Mutant | -10/Mines Mutant | -10/Subcaves Resources | -11 -10 -10 -10 ----------- Run | Yrd Mat Min Sub Matter Collected 362 | 243 54 20 45 Remotely . | . . . . Salvage Created 112 | 39 28 . 45 Parts 12 | 8 2 . 2 Haulers Intercepted . | . . . . Recyclers Shooed 1 | . 1 . . Parts Field Recycled . | . . . . Retrieved Matter . | . . . . Parts Self-Destructed 1 | . . . 1 Prevented . | . . . . Kills | -11 -10 -10 -10 ------- Run | Yrd Mat Min Sub Combat Hostiles Destroyed 2 | . . 1 1 Cannons 2 | . . 1 1 Classes Destroyed 4 | 1 1 1 1 Tunneler 2 | 2 . . . Watcher 1 | . 1 . . Sentry 1 | . . . 1 Demolisher 1 | . . 1 . Best Kill Streak 1 | 1 1 1 1 Combat Bots Only 1 | . . 1 1 Max Kills in Single Turn 1 | 1 1 1 1 Gunslinging . | . . . . Exploded . | . . . . Melee . | . . . . Uniques/NPCs Destroyed . | . . . . Combat | -11 -10 -10 -10 -------- Run | Yrd Mat Min Sub Hostile Shots Fired 54 | . . 13 41 Missed 15 | . . 1 14 Hits 39 | . . 12 27 Projectile 39 | . . 12 27 AOE 11 | . . 11 . Critical Strikes 1 | . . . 1 Damage Taken 1012 | . 7 408 597 Core 275 | . . 54 221 Absorbed by Shields . | . . . . Core Remaining (%) 100 | 100 . . . Volleys Fired 18 | 2 2 6 8 Largest 2 | 2 2 2 2 Hottest 70 | 70 70 70 66 Shots Fired 31 | 4 4 10 13 Gun 16 | 4 4 8 . Cannon 15 | . . 2 13 Launcher . | . . . . Special . | . . . . Kinetic 23 | 2 2 6 13 Thermal 8 | 2 2 4 . Explosive . | . . . . Electromagnetic . | . . . . Robot Hit Streak 12 | 2 2 5 12 Robot Miss Streak 3 | 1 1 3 1 Penetration Max . | . . . . Secondary Targets . | . . . . Shots Hit Robots 20 | 3 2 7 8 Core Hits 7 | 2 2 2 1 Critical Kills . | . . . . Critical Parts Destroyed . | . . . . Critical Strikes 1 | 1 . . . Burn 1 | 1 . . . Melee Attacks . | . . . . Impact . | . . . . Slashing . | . . . . Piercing . | . . . . Sneak Attacks . | . . . . Combat Hostiles . | . . . . Follow-up Attacks . | . . . . Damage Inflicted 371 | 51 41 112 167 Guns 144 | 51 26 67 . Cannons 212 | . . 45 167 Explosions . | . . . . Melee . | . . . . Ramming 15 | . 15 . . Kinetic 293 | 26 14 86 167 Thermal 63 | 25 12 26 . Explosive . | . . . . Electromagnetic . | . . . . Impact . | . . . . Slashing . | . . . . Piercing . | . . . . Highest Corruption . | . . . . Average Corruption . | . . . . Corruption Purged . | . . . . Corruption Blocked . | . . . . Overload Shots . | . . . . Overflow Damage . | . . . . Projectiles . | . . . . Explosions . | . . . . Melee . | . . . . Knockbacks 1 | . . 1 . Impact . | . . . . Kinetic 1 | . . 1 . Secondary . | . . . . Self-Inflicted Damage 7 | . 7 . . Shots . | . . . . Rammed 2 | . 2 . . Targets Rammed 2 | . 2 . . Kicked . | . . . . Crushed . | . . . . Highest Temperature 27 | 9 9 27 . Average Temperature 9 | 6 6 11 . Received Heat Transfer 81 | . . . 81 Siege Activations . | . . . . Martial Activations . | . . . . Shielding Activations . | . . . . Robots Disrupted . | . . . . Combat Hostiles . | . . . . Robots Corrupted . | . . . . Combat Hostiles . | . . . . Parts Fried . | . . . . Impact Corruptions . | . . . . Robots Melted . | . . . . Combat Hostiles . | . . . . Parts Melted . | . . . . Heat Transferred 259 | 148 37 74 . Parts Sabotaged . | . . . . Parts Stolen . | . . . . Parts Stripped . | . . . . Power Chain Reactions . | . . . . Alert | -11 -10 -10 -10 ------- Run | Yrd Mat Min Sub Maximum Alert Level . | . . . . Low Security (%) 100 | 100 100 100 . Level 1 . | . . . . Level 2 . | . . . . Level 3 . | . . . . Level 4 . | . . . . Level 5 . | . . . . High Security . | . . . . Max Security . | . . . . Peak Influence 20 | 5 7 20 . Initial . | . . . . Average . | . . . . Influence Increases 61 | 10 11 20 20 Destroy 0b10 Robot/C 40 | . . 20 20 Destroy 0b10 Robot/NC 15 | 10 5 . . Destroy Leader 2 | . 2 . . Successful Hack 4 | . 4 . . Influence Decreases 61 | 10 11 20 20 Time Decay 61 | 10 11 20 20 Squads Dispatched 3 | . 3 . . Investigation 1 | . 1 . . Extermination . | . . . . Reinforcement 2 | . 2 . . Assault . | . . . . Garrison . | . . . . Intercept . | . . . . Searches Triggered . | . . . . Construction Impeded . | . . . . Haulers Reinforced . | . . . . Active Scanning Responses . | . . . . Cargo Convoy Interrupts . | . . . . Stealth | -11 -10 -10 -10 --------- Run | Yrd Mat Min Sub Distress Signals . | . . . . Communications Jammed . | . . . . Distress Signals . | . . . . Times Spotted 17 | . 3 10 4 Peak Tracking Total 19 | . 2 19 3 Tactical Retreats . | . . . . Traps | -11 -10 -10 -10 ------- Run | Yrd Mat Min Sub Traps Triggered 1 | . 1 . . Indirectly . | . . . . Trap Hack Attempts . | . . . . Triggered . | . . . . Disarmed . | . . . . Reprogrammed . | . . . . Reused . | . . . . Traps Extracted . | . . . . Installed . | . . . . Triggered . | . . . . Machines | -11 -10 -10 -10 ---------- Run | Yrd Mat Min Sub Machines Disabled . | . . . . Max in Single Turn . | . . . . Machines Repaired . | . . . . Machines Dismantled . | . . . . Machines Sabotaged . | . . . . Overloaded Fab Kills . | . . . . Hacking | -11 -10 -10 -10 --------- Run | Yrd Mat Min Sub Machines Accessed 1 | . 1 . . Terminals 1 | . 1 . . Fabricators . | . . . . Repair Stations . | . . . . Recycling Units . | . . . . Scanalyzers . | . . . . Garrison Access . | . . . . Total Hacks 4 | . 4 . . Successful 3 | . 3 . . Failed 1 | . 1 . . Catastrophic . | . . . . Database Lockouts . | . . . . Manual 2 | . 2 . . Terminals 4 | . 4 . . Fabricators . | . . . . Repair Stations . | . . . . Recycling Units . | . . . . Scanalyzers . | . . . . Garrison Access . | . . . . Terminal Hacks 2 | . 2 . . Prototype ID Bank 1 | . 1 . . Emergency Access Points 1 | . 1 . . Fabricator Hacks . | . . . . Repair Station Hacks . | . . . . Recycling Unit Hacks . | . . . . Scanalyzer . | . . . . Garrison Access Hacks . | . . . . Unauthorized Hacks 1 | . 1 . . Terminals 1 | . 1 . . Botnet 1 | . 1 . . Fabricators . | . . . . Repair Stations . | . . . . Recycling Units . | . . . . Scanalyzers . | . . . . Garrison Access . | . . . . Data Cores Recovered . | . . . . Used . | . . . . Hacking Detections . | . . . . Full Trace Events . | . . . . Feedback Events . | . . . . Feedback Blocked . | . . . . Robot Schematics Acquired . | . . . . Robots Built . | . . . . Authchips . | . . . . Time . | . . . . Total Robot Build Rating . | . . . . Part Schematics Acquired . | . . . . Parts Built . | . . . . Authchips . | . . . . Time . | . . . . Total Part Build Rating . | . . . . Parts Repaired . | . . . . Time . | . . . . Parts Recycled . | . . . . Recycled Matter . | . . . . Retrieved Matter . | . . . . Retrieved Components . | . . . . Parts Scanalyzed . | . . . . Part Schematics Acquired . | . . . . Parts Damaged . | . . . . Bothacking | -11 -10 -10 -10 ------------ Run | Yrd Mat Min Sub Used RIF Installer . | . . . . Robots Hacked . | . . . . Non-combat . | . . . . Combat . | . . . . Robot Hacks Applied . | . . . . Relay Couplers Released . | . . . . Fabnet Peak Effective % . | . . . . Robots Rewired . | . . . . Allies Hacked . | . . . . Hacks Repelled . | . . . . Allies | -11 -10 -10 -10 -------- Run | Yrd Mat Min Sub Total Allies . | . . . . Largest Group . | . . . . Highest-Rated Group . | . . . . Highest-Rated Ally . | . . . . Total Orders . | . . . . Ally Attacks . | . . . . Total Damage . | . . . . Kills . | . . . . Allies Corrupted . | . . . . Allies Melted . | . . . . Intel | -11 -10 -10 -10 ------- Run | Yrd Mat Min Sub Active Infowar (turns) 735 | 25 170 406 134 Seismic 735 | 25 170 406 134 Robot Analysis Total . | . . . . Derelict Logs Recovered . | . . . . Drone Launches . | . . . . Drone Recoveries . | . . . . Exploration | -11 -10 -10 -10 ------------- Run | Yrd Mat Min Sub Turns Passed 866 | 156 170 406 134 Spaces Moved 757 | 77 135 433 112 Core 36 | 36 . . . Treads 83 | 41 42 . . Legs . | . . . . Wheels 638 | . 93 433 112 Hover . | . . . . Flight . | . . . . Fastest Speed 50 | 50 90 90 90 Average Speed 102 | 169 111 90 95 Slowest Speed 250 | 250 160 90 110 Overloaded Moves . | . . . . Propulsion Burnouts . | . . . . Robots Hopped . | . . . . Potential Cave-ins . | . . . . Cave-ins Triggered . | . . . . Exploration Rate (%) 26 | 6 33 59 9 Regions Visited 3 Branch Regions 2 Pre-discovered Areas . | . . . . Known Exits Taken . | . . . . Unknown Exits Taken 3 | 1 1 1 . Scrap Searched 1 | . . 1 . Spaces Dug . | . . . . Terrain Destroyed . | . . . . Melee . | . . . . Projectile . | . . . . AOE . | . . . . Terrain Rammed . | . . . . Walls Destroyed . | . . . . Machines Disabled . | . . . . Actions | -11 -10 -10 -10 --------- Run | Yrd Mat Min Sub Total 815 | 99 151 439 126 Wait . | . . . . Move 754 | 76 134 432 112 Hop . | . . . . Pick Up 23 | 14 6 . 3 Fast Attach . | . . . . Attach 10 | 7 1 1 1 Detach . | . . . . Swap 2 | . 1 . 1 Drop 6 | . 5 . 1 Fire 18 | 2 2 6 8 Melee . | . . . . Ram 2 | . 2 . . Kick . | . . . . Crush . | . . . . Escape Stasis . | . . . . Rewire . | . . . . Trap . | . . . . Miscellaneous . | . . . . Route ------- -11/Scrapyard -10/Materials -10/Mines (discovered 2 exits: [*Mat] / [*Sub]) -10/Subcaves History --------- Turn | Location | Event 23 | -11/Scrapyard | Discovered new exit (range 15) 157 | -11/Scrapyard | Entered Materials 279 | -10/Materials | Discovered new exit (range 6) 300 | -10/Materials | Build established: Mutant 327 | -10/Materials | Entered Mines 399 | -10/Mines | Assembled infested the area 561 | -10/Mines | Discovered new exit (range 11) 725 | -10/Mines | Discovered new exit (range 5) 733 | -10/Mines | Entered Subcaves 836 | -10/Subcaves | Core integrity fell below 50% 852 | -10/Subcaves | Shifting Twisted Machinery released Sub. Monowheel 853 | -10/Subcaves | Shifting Twisted Machinery released Sub. Machine Gun 864 | -10/Subcaves | Core integrity fell below 20% 867 | -10/Subcaves | Destroyed by T3-J3X(R) with Subdweller Beam Cannon Last Messages --------------- 00748_ BD-UCB(z): "She is not going to be happy we haven't found any suitable candidates yet." 00809_ Y-45 Defender destroyed. 00815_ Subatomizers dissect the Sub. Machine Gun. 00815_ Acquired Lgt. Armor Plating. 00819_ Acquired Battle Cannon. 00821_ Dropped Com. Wheel. 00821_ Acquired Sub. Monowheel. 00822_ Beam Rifle fries itself beyond repair. 00825_ Subatomizers dissect the Sub. Machine Gun. 00829_ Acquired 45 matter. 00835_ Arm. Wheel destroyed. 00837_ Imp. Light Cannon destroyed. Sub. Monowheel falls loose from the Twisted Machinery. Sub. Machine Gun falls loose from the Twisted Machinery. 00865_ Imp. Light Cannon destroyed. Map ----- +----------------------------------------------------+ | ?????????????????????????????????????????????????? | | ?????????????????????????????????????????????????? | | ?????????????????????????????????????????????????? | | ?????????????????????????????????????????????????? | | ?????????????????????????????????????????????????? | | ?????????????????????????????????????????????????? | | ?????????????????????????????????????????????????? | | ?????????????????????????????????????????????????? | | ?????????????????????????????????????????????????? | | ?????????????????????????????????????????????????? | | ?????????????????????????????????????????????????? | | ?????????????????????????????????????????????????? | | ?????????????????????????????????????????????????? | | ?????????????????????????????????????????????????? | | ?????????????????????????????????????????????????? | | ????????????????????##???????????????????????????? | | ???????????????????## #??????????????????????????? | | ???????????????????# ##????????????????????????? | | ???????????????????# %####?????????????????????? | | ???????????????????# " " ##????????????????????? | | ???????????????????# """" ##???????????????????? | | ???????????????????# """ ##??????????????????? | | ?????????####??????# """#??????????????????? | | #????????# ##?????# ""??????????????????? | | ????????# #??????# ????????????????????? | | ???????## #?????## @#??????????????????????? | | ###????# ???#### ##??????????????????????? | | #????# ##### ##???????????????????????? | | ??????# ## R ##????????????????????????? | | ##?????# R R #?????????????????????????? | | ####### # ##????????????????????????? | | ### ;# #### #####????????????????????? | | # ##### ## ## #????????????????????? | | #???# #### #?????????????????????? | | % #???# ?# #?????????????????????? | | # #???# #?#### # #?????????????????????? | | ## #???# ????### #?????????????????????? | | ## ##???# ?????? "????????????????????? | | ##= #?????##?????#" """???????????????????? | | ##%! #????????????#"""""""??????????????????? | | ###[ #????????????[""""" "??????????????????? | | #?######???????????? ""= "??????????????????? | | #??????????????????" ##""" "??????????????????? | | #?????????????????##??"??????????????????????? | | #????????????????????????????????????????????? | | #???????????????????????????????????????????? | | # #???????????????????????????????????????????? | | ## #???????????????????????????????????????????? | | ??# #???????????????????????????????????????????? | | ???##????????????????????????????????????????????? | +----------------------------------------------------+ Best States ------------- Heat Dissipation 25 Energy Generation 10 Energy Capacity 250 Matter Stores 300 Matter Capacity 300 Sight Range 16 Terrain Scan Density 10 Evasion (%) 42 Recoil Reduction 2 Item Schematics ----------------- None Robot Schematics ------------------ None Fabricated ------------ Nothing Repaired ---------- Nothing Alien Tech Used ----------------- None Achievements -------------- I Survived The Infestation Slippery One Challenges ------------ None Game ------ Seed AbsorptionAerolevBlaster Manual? 0 Play Time 00:10:46 Cumulative 28.3 hours Start 2025.07.21 @ 16:25:45 End 2025.07.21 @ 16:35:39 Sessions 1 Manual Loads 0 Difficulty Rogue Special Mode None Game No. 75 Rogue 75 Adventurer 0 Explorer 0 Win Type - Total 0 Types 0/0/0/0/0/0/0/0/0/0 Lore% 25 Gallery% 30 Achievement% 23 Wizard Run 0 Options --------- Layout 1 ASCII 0 Keyboard 0 Movement Mouse Keybinds 0 Fullscreen 1 Font 24/Smallcaps Map View 50x35 Zoom Use 0% Tactical HUD 1 Map Filters NONE Filters NONE Steam 1 RUN: 56789892-ae85-456a-9e7d-9473ef19bf3a